{"text_format":"1","workbook":"xlsx","n_sheets":1,"sheets":["Soupis prací SO 401 se vzorci"],"not_rendered":{"charts":0,"images":0,"macros":0,"external_links":0,"defined_names":1,"comments":0,"pivot_tables":0},"unopened":[],"bounds":{"document_bytes":16777216,"sheet_cells":100000,"rows_first":2000,"rows_last":500,"rows_between":2000,"halvings":0,"cell_chars":16384,"cell_head_chars":4096},"cells_cut":0,"cells_raw":0,"read":"whole","date_system":"1900"}

{"sheet":"Soupis prací SO 401 se vzorci","index":0,"n_rows":771,"n_cols":8,"rows_kept":771,"cut":false,"hidden":false,"merged":[[19,3,19,4]]}
[]
[]
["1.","Sestavení nákladů stavby:"]
[null,"Vybavení křižovatky č. 4077 Martinovská - Provozní - 1. čs. armádního sboru SSZ"]
[null,"SO 401 PŘELOŽKA VEŘEJNÉHO OSVĚTLENÍ"]
[]
[null,"Poznámky:"]
[null,"Při sestavení soupisu prací stavby \"Vybavení křižovatky č. 4077 Martinovská - Provozní - 1. čs. armádního sboru SSZ,"]
[null,"SO 401 PŘELOŽKA VEŘEJNÉHO OSVĚTLENÍ\" není použita cenová soustava."]
[null,"Výměry položek vycházejí z výkresů a z textových částí SO 401."]
[null,"Všechny položky obsahující dodání materiálu zahrnují rovněž dopravu materiálu ma místo určení."]
[null,"Množství dodávaného betonu a zásypových hmot do výkopů (písek, struska apod.) je zvýšeno o ztratné ve výši 3,5%"]
[null,"z celkového objemu. Rovněž délky kabelů a chrániček zahrnují ztratné prořezem ve výši 3,5% z celkové délky."]
[]
[]
[]
[null,null,"Kč",null,null,"Kč"]
[null,null,"bez DPH",null,null,"vč. DPH"]
[]
[null,"Celkové stavební náklady SO 401",null,{"$f":"F43","v":0},null,{"$f":"F45","v":0}]
[]
[]
[]
[]
[]
[null,"R E K A P I T U L A C E"]
[]
[]
["I.","demontáže",null,null,null,{"$f":"ROUND(F125,-1)","v":0}]
[]
["II.A","montáže",null,null,{"$f":"ROUND(F293,-1)","v":0}]
["II.B","montáže - materiál nosný",null,null,{"$f":"ROUND(F517,-1)","v":0}]
["II.","montáže celkem",null,null,null,{"$f":"ROUND(SUM(E31:E32),-1)","v":0}]
[]
["III.A","uzemnění - montáže",null,null,{"$f":"ROUND(F552,-1)","v":0}]
["III.B","uzemnění - materiál nosný",null,null,{"$f":"ROUND(F577,-1)","v":0}]
["III","uzemnění celkem",null,null,null,{"$f":"ROUND(SUM(E35:E36),-1)","v":0}]
[]
["IV.","zemní práce",null,null,null,{"$f":"ROUND(F734,-1)","v":0}]
[]
["V.","hodinová zúčtovací sazba a jiné poplatky",null,null,null,{"$f":"ROUND(F771,-1)","v":0}]
[]
[null,"CELKOVÉ  STAVEBNÍ  NÁKLADY SO 401 - BEZ DPH",null,null,null,{"$f":"ROUND(SUM(F29:F42),-1)","v":0}]
[null,{"$f":"\"DPH \"&$G$44&\"%\"","v":"DPH 21%"},null,null,null,{"$f":"ROUND(F43*($G$44/100),0)","v":0},21,"Do buňky G44 doplnit aktuální sazbu DPH v %"]
[null,"CELKOVÉ STAVEBNÍ NÁKLADY SO 401 - vč. DPH",null,null,null,{"$f":"F43+F44","v":0}]
[]
[]
["2.","Soupis prací (rozpočet) stavby:"]
[null,"Vybavení křižovatky č. 4077 Martinovská - Provozní - 1. čs. armádního sboru SSZ"]
[null,"SO 401 PŘELOŽKA VEŘEJNÉHO OSVĚTLENÍ"]
[]
["Soupis prací pro investora s uvedením cen"]
[]
["I.","DEMONTÁŽE"]
[null,"(výměry vycházejí z výkresu 2.2.1)"]
[]
[1,"kompletní demontáž silničního bezpaticového ocel. stožáru VO (výška 10 m) vč."]
[null,"jednoramen. výložníku, svítidla se zdrojem, svod. kabelu, elektrovýzbroje s jištěním,"]
[null,"koncovek kabelů - vč. montážní plošiny, likvidace výbojky, naložení, odvozu,"]
[null,"likvidace a uložení odpadu (nepoškodit - materiál bude předán správě VO,"]
[null,"svítidlo ze stožáru č. 26 bude přeloženo)","ks",2,null,{"$f":"D61*E61","v":0}]
[]
[null,"Výměry položky:"]
[null,"1+1= 2 ks  - stožár č. 26 (1. čs. armádního sboru) a č. 53 (Martinovská)"]
[]
[]
[{"$f":"A57+1","v":2},"kompletní demontáž silničního paticového ocelového stožáru VO (výška 10 m)"]
[null,"vč. jednoramenného výložníku, svítidla se zdrojem, svod. kabelu, elektrovýzbroje"]
[null,"s jištěním, koncovek kabelů - včetně montážní plošiny, likvidace výbojky, naložení,"]
[null,"odvozu, likvidace a uložení odpadu (svítidlo bude předáno správě VO)","ks",1,null,{"$f":"D70*E70","v":0}]
[]
[null,"Výměry položky:"]
[null,"1 ks  - stožár č. 57 (Martinovská)"]
[]
[]
[{"$f":"A67+1","v":3},"kompletní demontáž silničního paticového ocelového stožáru VO (výška 10 m)"]
[null,"vč. dvouramenného výložníku, 2 svítidel se zdroji, 2 svod. kabelů, elektrovýzbroje"]
[null,"s jištěním, koncovek kabelů - včetně montážní plošiny, likvidace výbojek, naložení,"]
[null,"odvozu, likvidace a uložení odpadu (svítidla budou předána správě VO)","ks",1,null,{"$f":"D79*E79","v":0}]
[]
[null,"Výměry položky:"]
[null,"1 ks  - stožár č. 54 (Martinovská)"]
[]
[]
[{"$f":"A76+1","v":4},"kompletní demontáž silničního bezpaticového ocel. stožáru VO (výška 10 m) včetně"]
[null,"dvouram. výložníku, 2 svítidel se zdroji, 2 svod. kabelů, elektrovýzbroje s jištěním,"]
[null,"koncovek kabelů - včetně montážní plošiny, likvidace výbojky, naložení, odvozu,"]
[null,"likvidace a uložení odpadu (nepoškodit - materiál bude předán správě VO)","ks",1,null,{"$f":"D88*E88","v":0}]
[]
[null,"Výměry položky:"]
[null,"1 ks  - stožár č. 55 (Martinovská)"]
[]
[]
[{"$f":"A85+1","v":5},"demontáž základu silničního stožáru VO (rozměry do 0,7 x 0,7 m) - odkopání základu"]
[null,"a rozbití betonu a stožárového pouzdra do hloubky 0,7 m, vyčištění jámy do hloubky"]
[null,"0,7 m včetně nbaložení, odvozu, likvidace a uložení odpadu (0,343 m3), zasypání jámy"]
[null,"jemnou struskou, dodání a dovoz 0,355 m3 (0,7 x 0,7 x 0,7 x 1,035) strusky frakce"]
[null,"0 - 8 mm, zhutnění záhozu - bez provedení definitivní úpravy povrchu","ks",5,null,{"$f":"D98*E98","v":0}]
[]
[null,"Výměry položky:"]
[null,"2+1+1+1= 5 ks  - základy stožárů v položkách č. 1 až č. 4"]
[]
[]
[{"$f":"A94+1","v":6},"demontáž elektrovýzbroje pro 1 okruh s jištěním ze stávajícího bezpaticového"]
[null,"silničního stožáru VO vč. naložení, odvozu a likvidace odpadu","ks",1,null,{"$f":"D105*E105","v":0}]
[]
[null,"Výměry položky:"]
[null,"1 ks  - ze stáv. stožáru č. 24 (1. čs. armádního sboru)"]
[]
[]
[{"$f":"A104+1","v":7},"demontáž elektrovýzbroje pro 1 okruh s jištěním ze stávajícího paticového"]
[null,"silničního stožáru VO vč. naložení, odvozu a likvidace odpadu","ks",1,null,{"$f":"D112*E112","v":0}]
[]
[null,"Výměry položky: 1 ks  - ze stáv. stožáru č. 24 (1. čs. armádního sboru)"]
[]
[]
[{"$f":"A111+1","v":8},"demontáž kabelu rozvodu VO (do 4 x 35 mm2 včetně) v zemi v místech demont."]
[null,"stožárů VO vč. naložení, odvozu, likvidace a uložení odpadu","m",25,null,{"$f":"D118*E118","v":0}]
[]
[null,"Výměry položky:"]
[null,"(2+1+1+1)*5=25 m  - do výměry započítány kabely VO v rozsahu odkopání při demontážích stožárů vč. nadzemních částí"]
[null,"kabelů zaústěných do elektrovýzbrojí (2*2,5=5 m na každý demontovaný stožár)"]
[]
[]
[null,"Celkem",null,null,null,{"$f":"SUM(F54:F124)","v":0}]
[]
[]
["II.A","MONTÁŽE"]
[null,"(výměry vycházejí z výkresů 2.2.1, 2.2.2 a 2.2.3)"]
[]
[1,"silniční výložníkový osvětlovací stožár jmen. výšky 10 m v provedení s dříkem"]
[null,"vetknutým do základu v zemi, jednoram. výložník, výbojkové svítidlo se zdrojem,"]
[null,"svodový kabel, elektrovýzbroj pro 1 okruh (min. IP2X) s jištěním, zatažení kabelů"]
[null,"(2 ks do 4x35 mm2) do stožáru, ukončení a zapojení kabelů - vč. montáž. plošiny","ks",3,null,{"$f":"D134*E134","v":0}]
[]
[null,"Výměry položky: 1+1+1= 3 ks  - světelná místa č. 54, č. 57 (Martinovská) a č. 26 (1. čs. armádního sboru)"]
[]
[]
[{"$f":"A131+1","v":2},"silniční výložníkový osvětlovací stožár jmenovité výšky 10 m v přírubovém"]
[null,"provedení, dvouramenný výložník, 2 výbojková svítidla se zdroji, 2 svod."]
[null,"kabely, elektrovýzbroj pro 2 okruhy (min. IP2X) s jištěním, zatažení kabelů (2 ks"]
[null,"do 4 x 35 mm2) do stožáru, ukončení a zapojení kabelů - včetně montážní plošiny","ks",1,null,{"$f":"D142*E142","v":0}]
[]
[null,"Výměry položky: 1 ks  - světelná místa č. 53p (Martinovská)"]
[]
[]
[{"$f":"A139+1","v":3},"silniční výložníkový osvětlovací stožár jmen. výšky 10 m v provedení s dříkem"]
[null,"vetknutým do základu v zemi, dvouramenný výložník, 2 výbojková svítidla"]
[null,"se zdroji, 2 svod. kabely, ukončení a zapojení kabelů - vč. montážní plošiny","ks",2,null,{"$f":"D149*E149","v":0}]
[]
[null,"Výměry položky: 1+1= 2 ks  - světelná místa č. 55 a č. 56 (Martinovská)"]
[]
[]
[{"$f":"A147+1","v":4},"plastová smyčkovací skříňka s elektrovýzbrojí pro 2 okruhy (min. IP2X) s jištěním"]
[null,"na stožár VO ocelovými nerez páskami vč. zapojení kabelů rozvodu VO a svod."]
[null,"kabelů, osazení plast. ochranných trubek Ø32 mm (2 ks) pro kabely VO v úseku"]
[null,"od skříňky do země, vyvrtání 2 ks otvorů Ø15 mm v dříku stožáru pro zatažení"]
[null,"svod. kabelů do stožáru, ošetření dříků stožárů antikorozním nátěrem v místech"]
[null,"vrtů, dodání a osazení mechanické ochrany svod. kabelů mezi skříňkou a stožárem"]
[null,"a při průchodu svodů dříkem, připojení ochr. vodiče na uzemnění, osazení 5 ks"]
[null,"průchodek, utěsnění otvorů - vč. potřebných nástrojů a barvy (RAL 7046)","ks",2,null,{"$f":"D161*E161","v":0}]
[]
[null,"Výměry položky: 1+1 =2 ks  - na stožáry č. 55 a č. 56 (Martinovská)"]
[]
[]
[{"$f":"A154+1","v":5},"kompletní nátěr silnič. ocel. osvětl. stožáru jmen. výšky 10 m (Ø168/114/89 mm)"]
[null,"s jednoramenným výložníkem (Ø60 mm, vyložení 2,5 m), povrch 1 vrstvy"]
[null,"natírané plochy 4,9 m2 vč. překrytí vrstev) vč. očištění a odmaštění povrchu,"]
[null,"provedení nátěru 1 vrstvou základní barvy na žár. zinkovaný povrch, 2 vrstvami"]
[null,"vrchní barvy (dřík stož. do výšky 1,4 m nad zemí šedou RAL 7046 - 1 m2- 1 vrstva,"]
[null,"zbytek stožáru a výložník stříbrnou RAL 9006 - 3,9 m2- 1 vrstva), očíslování"]
[null,"stožáru (2 znaky, černou barvou RAL 9005), označení dvířek stožáru červeným"]
[null,"výstr. bleskem - vč. montážní plošiny, dodávky barev a dalšího potřeb. materiálu"]
[null,"(štětce, ředidla, šablony, odmašťovací přípravek, samolepka s výstr. bleskem)","ks",3,null,{"$f":"D174*E174","v":0}]
[]
[null,"Výměry položky:"]
[null,"1+1+1= 3 ks  - světelná místa č. 54, č. 57 (Martinovská) a č. 26 (1. čs. armádního sboru)"]
[]
[{"$f":"A166+1","v":6},"kompletní nátěr silnič. ocel. osvětl. stožáru jmen. výšky 10 m (Ø168/114/89 mm)"]
[null,"s dvouramenným výložníkem (Ø60 mm, vyložení 2,5 m), povrch 1 vrstvy"]
[null,"natírané plochy 5,8 m2 vč. překrytí vrstev) vč. očištění a odmaštění povrchu,"]
[null,"provedení nátěru 1 vrstvou základní barvy na žár. zinkovaný povrch, 2 vrstvami"]
[null,"vrchní barvy (dřík stož. do výšky 1,4 m nad zemí šedou RAL 7046 - 1 m2- 1 vrstva,"]
[null,"zbytek stožáru a výložník stříbrnou RAL 9006 - 4,8 m2- 1 vrstva), očíslování"]
[null,"stožáru (3 znaky, černou barvou RAL 9005), označení dvířek stožáru červeným"]
[null,"výstr. bleskem - vč. montážní plošiny, dodávky barev a dalšího potřeb. materiálu"]
[null,"(štětce, ředidla, šablony, odmašťovací přípravek, samolepka s výstr. bleskem)","ks",1,null,{"$f":"D187*E187","v":0}]
[]
[null,"Výměry položky: 1 ks  - světelné místo č. 53p (Martinovská)"]
[]
[]
[{"$f":"A179+1","v":7},"kompletní nátěr silničního ocelového osvětlovacího stožáru jmenovité výšky 10 m"]
[null,"(Ø168/133/89 mm) s dvouramenným výložníkem (Ø60 mm, vyložení 2,5 m), povrch"]
[null,"1 vrstvy natírané plochy 6,05 m2 vč. překrytí vrstev) vč. očištění a odmaštění"]
[null,"povrchu, provedení nátěru 1 vrstvou základní barvy na žárově zinkovaný povrch,"]
[null,"2 vrstvami vrchní barvy (dřík stožáru do výšky 1,4 m nad zemí šedou RAL 7046 -"]
[null,"1 m2- 1 vrstva, zbytek stožáru a výložník stříbrnou RAL 9006 - 5,05 m2- 1 vrstva),"]
[null,"očíslování stožáru (2 znaky, černou barvou RAL 9005), označení dvířek stožáru"]
[null,"červeným výstražným bleskem - vč. montážní plošiny, dodávky barev a dalšího"]
[null,"potřebného materiálu (štětce, ředidla, šablony, odmašťovací přípravek, samolepka"]
[null,"s výstražným bleskem)","ks",1,null,{"$f":"D201*E201","v":0}]
[]
[null,"Výměry položky:"]
[null,"1 ks  - světelné místo č. 55 (Martinovská)"]
[]
[]
[{"$f":"A192+1","v":8},"kompletní nátěr silničního ocelového osvětlovacího stožáru jmenovité výšky 8 m"]
[null,"(Ø168/133/89 mm) s dvouramenným výložníkem (Ø60 mm, vyložení 2,5 m), povrch"]
[null,"1 vrstvy natírané plochy 5,2 m2 vč. překrytí vrstev) vč. očištění a odmaštění"]
[null,"povrchu, provedení nátěru 1 vrstvou základní barvy na žárově zinkovaný povrch,"]
[null,"2 vrstvami vrchní barvy (dřík stožáru do výšky 1,4 m nad zemí šedou RAL 7046 -"]
[null,"1 m2- 1 vrstva, zbytek stožáru a výložník stříbrnou RAL 9006 - 4,2 m2- 1 vrstva),"]
[null,"očíslování stožáru (2 znaky, černou barvou RAL 9005), označení dvířek stožáru"]
[null,"červeným výstražným bleskem - vč. montážní plošiny, dodávky barev a dalšího"]
[null,"potřebného materiálu (štětce, ředidla, šablony, odmašťovací přípravek, samolepka"]
[null,"s výstražným bleskem)","ks",1,null,{"$f":"D216*E216","v":0}]
[]
[null,"Výměry položky:"]
[null,"1 ks  - světelné místo č. 56 (Martinovská)"]
[]
[]
[{"$f":"A207+1","v":9},"zatažení kabelu do stáv. bezpaticového stožáru VO nebo rozváděče stávající"]
[null,"ochrannou trubkou v základu vč. zapojení kabelu","ks",7,null,{"$f":"D223*E223","v":0}]
[]
[null,"Výměry položky:"]
[null,"1+1+4 = 6 ks  - do stáv. stožáru č. 24 (1. čs. armádního sboru), č. 58 (Martinovská),"]
[null,"č. 1 (Provozní), 4 x do RVOO 875/1"]
[]
[]
[{"$f":"A222+1","v":10},"elektrovýzbroj pro 1 okruh s jištěním do stávajícího bezpaticového silničního"]
[null,"stožáru VO vč. zapojení kabelů rozvodu VO a svodového kabelu","ks",1,null,{"$f":"D231*E231","v":0}]
[]
[null,"Výměry položky:"]
[null,"1 ks  - ze stáv. stožáru č. 24 (1. čs. armádního sboru)"]
[]
[]
[{"$f":"A230+1","v":11},"elektrovýzbroj pro 1 okruh s jištěním do stávajícího paticového silničního"]
[null,"stožáru VO vč. zapojení kabelů rozvodu VO a svodového kabelu, montáže "]
[null,"a utěsnění stávající patice, dodání těsnícího tmelu","ks",1,null,{"$f":"D239*E239","v":0}]
[]
[null,"Výměry položky:"]
[null,"1 ks  - ze stáv. stožáru č. 24 (1. čs. armádního sboru)"]
[]
[]
[{"$f":"A237+1","v":12},"odbočení kabelu ve stožáru (příplatek na zapojení třetího kabelu v elektrovýzbroji"]
[null,"a ukončení tohoto kabelu vulkanizační páskou a na osazení ochranné plastové"]
[null,"trubky Ø40 mm do základu stožáru)","ks",2,null,{"$f":"D247*E247","v":0}]
[]
[null,"Výměry položky:"]
[null,"1+1=2 ks  - ve stožárech č. 53p (Martinovská) a č. 54 (Martinovská)"]
[]
[]
[{"$f":"A245+1","v":13},"smršťovací kabelová spojka pro kabely nn do 4 x 35 mm2","ks",5,null,{"$f":"D253*E253","v":0}]
[]
[null,"Výměry položky:"]
[null,"1+1+1+1+1=5 ks"]
[]
[]
[{"$f":"A253+1","v":14},"příplatek za zatahování kabelu do trubkové trasy (do 2 kg/m)","m",498,null,{"$f":"D259*E259","v":0}]
[]
[null,"Výměry položky:"]
[null,"součet výměr položek č. 15 a č. 16"]
[]
[]
[{"$f":"A259+1","v":15},"montáž kabelu 1-AYKY-J 4 x 35 mm2 volně ","m",141,null,{"$f":"D265*E265","v":0}]
[]
[null,"Výměry položky - viz položka č. 21 v oddíle II.B MONTÁŽE - materiál nosný"]
[]
[]
[{"$f":"A265+1","v":16},"montáž kabelu CYKY-J 4 x 16 mm2 volně ","m",357,null,0]
[]
[null,"Výměry položky - viz položka č. 22 v oddíle II.B MONTÁŽE - materiál nosný"]
[]
[]
[{"$f":"A270+1","v":17},"výměna válc. pojistek 14x51 mm ve stáv. rozváděči vč. likvidace stáv. pojistek","ks",12,null,{"$f":"D275*E275","v":0}]
[]
[null,"Výměry položky:"]
[null,"4*3=12 ks  - v RVOO 875/1"]
[]
[]
[{"$f":"A275+1","v":18},"kabelová koncovka smršťovací pro kabely 4 x 10 - 4 x 70 mm2","ks",4,null,{"$f":"D281*E281","v":0}]
[]
[null,"Výměry položky:"]
[null,"4 ks  - v RVOO 875/1"]
[]
[]
[{"$f":"A281+1","v":19},"vyčištění stáv. svítidla a optické části vč. dodání vody a saponátového přípravku","ks",1,null,{"$f":"D287*E287","v":0}]
[]
[null,"Výměry položky:"]
[null,"1 ks - překládané svítidlo na stožáru č. 26 (1. čs. armádního sboru)"]
[]
[]
[null,"Celkem",null,null,null,{"$f":"SUM(F128:F292)","v":0}]
[]
[]
["II.B","MONTÁŽE - materiál nosný"]
[null,"(výměry vycházejí z výkresů 2.2.1, 2.2.2 a 2.2.3)"]
[]
[1,"ocel. osvětlovací silniční bezpaticový stožár třístupňový jmenovité výšky"]
[null,"10 m s ochrannou manžetou v místě vetknutí (Ø168/5 mm - délka 3,5 m,"]
[null,"Ø114/4,5 mm - délka 2,9 m, Ø89/3,5 mm - délka 3,3 m, Tn min. 1,24 kN, délka"]
[null,"vetknutí dříku do země 1,5 m, nadzemní výška dříku 8,2 m, celková délka"]
[null,"dříku 9,7 m, ochranná manžeta z plechu tl. min. 3 mm, povrchová úprava celého"]
[null,"stožáru oboustranným žárovým zinkováním, zapuštěná dvířka 100 x 400 mm"]
[null,"s uzamykáním zámkem na trojúhelníkový klíč, výška spodního okraje dvířek"]
[null,"600 mm nad úrovní vetknutí, uvnitř dříku šroub M8 pro upevnění elektrovýzbroje,"]
[null,"ve spodní části dříku otvor se závitem M8 pro montáž uzemnění, 3 matice"]
[null,"a upevňovací šrouby M12 (200 mm od vrcholu) pro upevnění výložníku)","ks",3,null,{"$f":"D308*E308","v":0}]
[]
[null,"Výměry položky:"]
[null,"1+1+1=3 ks  - stožáry č. 54 a č. 57 (Martinovská), stožár č. 26 (1. čs. armádního sboru)"]
[]
[]
[{"$f":"A299+1","v":2},"zesílený ocel. osvětlovací silniční bezpaticový stožár třístupňový jmenovité"]
[null,"výšky 10 m s ochrannou manžetou v místě vetknutí (Ø168/6,3 mm - délka 3,5 m,"]
[null,"Ø133/5 mm - délka 2,9 m, Ø89/4,5 mm - délka 3,3 m, délka vetknutí dříku do země"]
[null,"1,5 m, nadzemní výška dříku 8,2 m, celková délka dříku 9,7 m, ochranná manžeta"]
[null,"z plechu tl. min. 3 mm, povrchová úprava celého stožáru oboustranným žárovým"]
[null,"zinkováním, stožár bez dvířek, ve spodní části dříku otvor se závitem M8 pro"]
[null,"montáž uzemnění, 3 matice a upevňovací šrouby M12 (200 mm od vrcholu) pro"]
[null,"upevnění výložníku) - před objednáním stožáru předat technické detaily jeho"]
[null,"provedení zhotoviteli SSZ","ks",1,null,{"$f":"D322*E322","v":0}]
[]
[null,"Výměry položky: 1 ks  - stožár č. 55 (Martinovská)"]
[]
[]
[{"$f":"A314+1","v":3},"zesílený ocel. osvětlovací silniční bezpaticový stožár třístupňový jmenovité"]
[null,"výšky 8 m s ochrannou manžetou v místě vetknutí (Ø168/6,3 mm - délka 3,5 m,"]
[null,"Ø133/5 mm - délka 2,3 m, Ø89/4,5 mm - délka 1,9 m, délka vetknutí dříku do země"]
[null,"1,5 m, nadzemní výška dříku 6,2 m, celková délka dříku 7,7 m, ochranná manžeta"]
[null,"z plechu tl. min. 3 mm, povrchová úprava celého stožáru oboustranným žárovým"]
[null,"zinkováním, stožár bez dvířek, ve spodní části dříku otvor se závitem M8 pro"]
[null,"montáž uzemnění, 3 matice a upevňovací šrouby M12 (200 mm od vrcholu) pro"]
[null,"upevnění výložníku) - před objednáním stožáru předat technické detaily jeho"]
[null,"provedení zhotoviteli SSZ","ks",1,null,{"$f":"D335*E335","v":0}]
[]
[null,"Výměry položky: 1 ks  - stožár č. 56 (Martinovská)"]
[]
[]
[{"$f":"A327+1","v":4},"ocelový osvětlovací silniční bezpaticový přírubový stožár třístupňový jmenovité"]
[null,"výšky 10 m (Ø168/5 mm - délka 2,0 m, Ø114/4,5 mm - délka 2,9 m, Ø89/3,5 mm -"]
[null,"délka 3,3 m, nadzemní výška dříku 8,2 m, příruba 400 mm x 400 mm s výztužnými"]
[null,"žebry, v přírubě 4 otvory Ø26 mm osazené s roztečí 300 mm x 300 mm, tloušťka"]
[null,"příruby 20 mm, otvor v přírubě pro protažení zemniče FeZn Ø10 mm, povrchová"]
[null,"úprava celého stožáru oboustranným žárovým zinkováním, zapuštěná dvířka"]
[null,"100 x 400 mm s uzamykáním zámkem na trojúhelníkový klíč, výška spodního"]
[null,"okraje dvířek 600 mm nad spodním okrajem příruby, uvnitř dříku šroub M8 pro"]
[null,"upevnění elektrovýzbroje, ve spodní části dříku otvor se závitem M8 pro montáž"]
[null,"uzemnění, 3 matice a upevňovací šrouby M12 (200 mm od vrcholu) pro upevnění"]
[null,"výložníku) včetně ocelového kotevního roštu  (dodávaný pro konkrétní stožár"]
[null,"výrobcem tohoto stožáru, povrchová úprava žárovým zinkováním), potřebného"]
[null,"spoj. materiálu (4 x matice M24, 4 x uzavřená matice M24, 4 x pružná podložka"]
[null,"M24 - vše pozinkované) a 4 ks plastových krytek na kotevní šrouby s maticemi","ks",1,null,{"$f":"D353*E353","v":0}]
[]
[null,"Výměry položky:"]
[null,"1 ks  - stožár č. 53p (Martinovská)"]
[]
[]
[{"$f":"A340+1","v":5},"ocelový obloukový jednoramenný výložník (vyložení 2,5 m, rameno Ø60/3,5 mm,"]
[null,"provedení pro osazení do dříku Ø89/3,5 mm stožáru specifikov. v polož. č. 1, kryt"]
[null,"Ø102 mm proti zatékání vody do stož., svou výškou výložník doplňuje závěsnou"]
[null,"výšku svítidla na stožáru specifikovaném v položce č. 1 na 10 m, úhel vyložení"]
[null,"nezatíž. výložníku 4°, celý výložník oboustranně žárově zinkovaný)","ks",3,null,{"$f":"D363*E363","v":0}]
[]
[null,"Výměry položky:"]
[null,"1+1+1 =3 ks  - na stožáry č. 54 a č. 57 (Martinovská) a č. 26 (1. čs. armádního sboru)"]
[]
[]
[{"$f":"A359+1","v":6},"ocelový obloukový dvouramenný výložník (vyložení 2,5 m, ramena Ø60/3,5 mm,"]
[null,"výztuha mezi rameny, provedení pro osazení do dříků Ø89/3,5 až 4,5 mm stožárů"]
[null,"specifikovaných v položkách č. 2 až č. 4, úhel sevření ramen 90°, kryt Ø102 mm"]
[null,"proti zatékání vody do stožáru, střední trubka Ø76/3,5 mm, svou výškou výložník"]
[null,"doplňuje závěsnou výšku svítidel na stožárech specifikovaných v položkách č. 2"]
[null,"až č. 4 na 10 m, úhel vyložení nezatíženého výložníku 4°, celý výložník oboustranně"]
[null,"žárově zinkovaný)","ks",3,null,{"$f":"D375*E375","v":0}]
[]
[null,"Výměry položky:"]
[null,"1+1+1 =3 ks  - na stožáry č. 53p, č. 55 a č. 56 (Martinovská)"]
[]
[]
[{"$f":"A369+1","v":7},"výložníkové výbojkové svítidlo 150 W - celohliníkové provedení, předřadné"]
[null,"přístroje pro vysokotlakou sodíkovou výbojku 150 W, kompenzace, patice pro"]
[null,"výbojku E40, nastavitelná poloha světelného zdroje, délka svítidla 665 mm až"]
[null,"675 mm, šířka svítidla 320 mm až 330 mm, výška svítidla 185 mm až 195 mm,"]
[null,"provedení s plochým sklem, váha svítidla 7 kg až 10 kg, větrná plocha do 0,105 m2"]
[null,"krytí svítidla IP66 (dvojité krytí), provedení svítidla pro uchycení na výložník "]
[null,"Ø32 mm až Ø60 mm a na dřík Ø60 mm až Ø76 mm, barevné provedení svítidla"]
[null,"RAL 9007, odolnost optického krytu proti nárazu min. IK 08, třída I, požadované"]
[null,"vyzařování světelného toku svítidla - viz křivky svítivosti v Příloze č. 1","ks",6,null,{"$f":"D389*E389","v":0}]
[]
[null,"Výměry položky:"]
[null,"1+2+2+1 =6 ks  - na stožáry č. 53p, č. 54, č. 55 a č. 57 (Martinovská)"]
[]
[]
[{"$f":"A381+1","v":8},"výložníkové výbojkové svítidlo 100 W - celohliníkové provedení, předřadné"]
[null,"přístroje pro vysokotlakou sodíkovou výbojku 100 W, kompenzace, patice pro"]
[null,"výbojku E40, nastavitelná poloha světelného zdroje, délka svítidla 665 mm až"]
[null,"675 mm, šířka svítidla 320 mm až 330 mm, výška svítidla 185 mm až 195 mm,"]
[null,"provedení s plochým sklem, váha svítidla 7 kg až 10 kg, větrná plocha do 0,105 m2"]
[null,"krytí svítidla IP66 (dvojité krytí), provedení svítidla pro uchycení na výložník "]
[null,"Ø32 mm až Ø60 mm a na dřík Ø60 mm až Ø76 mm, barevné provedení svítidla"]
[null,"RAL 9007, odolnost optického krytu proti nárazu min. IK 08, třída I, požadované"]
[null,"vyzařování světelného toku svítidla - viz křivky svítivosti v Příloze č. 2","ks",2,null,{"$f":"D403*E403","v":0}]
[]
[null,"Výměry položky:"]
[null,"2 ks  - na stožár č. 56 (Martinovská)"]
[]
[]
[{"$f":"A395+1","v":9},"vysokotlaká sodíková výbojka 150 W (E40, 17500 lm, baňka tvaru T)","ks",6,null,{"$f":"D409*E409","v":0}]
[]
[null,"Výměry položky:"]
[null,"1+2+2+1 =6 ks  - do svítidel na stožárech č. 53p, č. 54, č. 55 a č. 57 (Martinovská)"]
[]
[]
[{"$f":"A409+1","v":10},"vysokotlaká sodíková výbojka 100 W (E40, 10700 lm, baňka tvaru T)","ks",3,null,{"$f":"D415*E415","v":0}]
[]
[null,"Výměry položky:"]
[null,"2+1=3 ks  - do svítidel na stožárech č. 56 (Martinovská) a č. 26 (1. čs. armádního sboru)"]
[]
[]
[{"$f":"A415+1","v":11},"stožárová elektrovýzbroj pro 1 jištěný okruh  (min. IP2X) s pojistk. odpínačem"]
[null,"pro válcovou pojistku velikosti 10 x 38 mm, upevnění elektrovýzbroje na šroub M8"]
[null,"uvnitř stožáru, velikost elektrovýzbroje přizpůsobená vnitřnímu prostoru uvnitř"]
[null,"stožáru (viz položka č. 1) a velikosti dvířek 100 x 400 mm, nosná konstrukce"]
[null,"a svorky v povrchové úpravě odolávající korozi, čtyřsvorková, připojení až"]
[null,"3 kabelů s žílami Cu/Al průřezu do 4x35 mm2 včetně","ks",5,null,{"$f":"D426*E426","v":0}]
[]
[null,"Výměry položky:"]
[null,"1+1+1+1+1 =5 ks  - do stožárů č. 24, č. 26 (1. čs. armádního sboru), č. 54, č. 57 a č. 58 (Martinovská)"]
[]
[]
[{"$f":"A421+1","v":12},"stožárová elektrovýzbroj pro 2 jištěné okruhy  (min. IP2X) se 2 pojistk. odpínači"]
[null,"pro válcové pojistky velikosti 10 x 38 mm, upevnění elektrovýzbroje na šroub M8"]
[null,"uvnitř stožáru, velikost elektrovýzbroje přizpůsobená vnitřnímu prostoru uvnitř"]
[null,"stožáru (viz položka č. 1) a velikosti dvířek 100 x 400 mm nebo velikosti skříněk,"]
[null,"nosná konstrukce a svorky v povrchové úpravě odolávající korozi, čtyřsvorková,"]
[null,"připojení až 3 kabelů s žílami Cu/Al průřezu do 4x35 mm2 včetně","ks",3,null,{"$f":"D437*E437","v":0}]
[]
[null,"Výměry položky:"]
[null,"1+1+1 =3 ks  - do stožárů č. 53p, č. 55 a č. 56 (Martinovská)"]
[]
[]
[]
[{"$f":"A432+1","v":13},"válcová pojistka vel. 10 x 38, jmen. proud 6 A, charakteristika gG","ks",11,null,{"$f":"E444*D444","v":0}]
[]
[null,"Výměry položky:"]
[null,"5+3*2 =11 ks  - do elektrovýzbrojí v položkách č. 11 a č. 12"]
[]
[{"$f":"A444+1","v":14},"válcová pojistka vel. 14 x 51, jmen. proud 16 A, charakteristika gG","ks",12,null,{"$f":"E449*D449","v":0}]
[]
[null,"Výměry položky: 4*3=12 ks  - do stáv. RVOO 875/1"]
[]
[]
[{"$f":"A449+1","v":15},"materiál pro ukončení 2 ks kabelů ve stožáru - vulkanizační samolepivá páska","ks",6,null,{"$f":"E454*D454","v":0}]
[]
[null,"Výměry položky:"]
[null,"1+1+1+1+1+1=6 ks  - do stožárů č. 53p, č. 54, č. 55, č. 56, č. 57 (Martinovská) a č. 26 (1. čs. armádního sboru)"]
[]
[{"$f":"A454+1","v":16},"odbočení ve stožáru - příplatek na dodání materiálu na ukončení dalšího kabelu"]
[null,"(vulkanizační páska samolepivá) a dodání 1 ks plastové ochranné trubky Ø40 mm"]
[null,"délky 1 m pro průchod kabelu VO základem stožáru","ks",2,null,{"$f":"E461*D461","v":0}]
[]
[null,"Výměry položky:"]
[null,"1+1=2 ks  - ve stožárech č. 53p (Martinovská) a č. 54 (Martinovská)"]
[]
[]
[{"$f":"A459+1","v":17},"smršťovací kabelová spojka pro kabely 1-AYKY-J 4 x 35 vč. příslušenství","ks",5,null,{"$f":"D467*E467","v":0}]
[]
[null,"Výměry položky: 1+1+1+1+1=5 ks"]
[]
[]
[{"$f":"A467+1","v":18},"plastová skříňka (380 mm x 300 mm x 120 mm, šedá, min. IP55, vhodná do venkov."]
[null,"prostředí, samozhášivý materiál, teplotní odolnost min. -25°C až +60°C°), nosná"]
[null,"konstrukce (pozink.) a potřebný spojovací materiál (nerez páska se sponami) pro"]
[null,"upevnění skříňky k dříku stožáru Ø168 mm, materiál pro připojení ochranného"]
[" ","vodiče na uzemnění (CY 16 mm2 - 1 m, šroub M8 s pružnou podložkou), 5 ks"]
[null,"průchodek pro vyvedení kabelů ze skříňky (2 x CYKY-J 4x16, 2 x CYKY 3x1,5,"]
[null,"1 x CY16), tmel pro utěsnění vrtaných otvorů (2 ks) v dříku","ks",2,null,{"$f":"E478*D478","v":0}]
[]
[null,"Výměry položky: 1+1 =2 ks  - na stožáry č. 55 a č. 56 (Martinovská)"]
[]
[]
[{"$f":"A472+1","v":19},"plastová ochranná trubka Æ 32 mm (samozhášivý materiál, teplotní odolnost"]
[null,"alespoň -25°C až +60°C, mechanická odolnost min. 750N/5cm, vhodná pro"]
[null,"venkovní použití) - vč. ztratného prořezem","m",2,null,{"$f":"E485*D485","v":0}]
[]
[null,"Výměry položky:"]
[null,"1+1=2 m  - ke skříňkám na stožárech č. 53p (Martinovská) a č. 54 (Martinovská)"]
[]
[]
[{"$f":"A483+1","v":20},"kabel CYKY-J 3x1,5 mm2 vč. ztratného prořezem","m",118,null,{"$f":"E491*D491","v":0}]
[]
[null,"Výměry položky:"]
[null,"(7*13+2*11+9*0,5)=118 m"]
[null,"Výměry položky (svodový kabel) obsahují kabely od svítidel do elektrovýzbrojí"]
[null,"vč. ztratného prořezem ve výši 0,5 m na každý svodový kabel"]
[]
[]
[{"$f":"A491+1","v":21},"kabel 1-AYKY-J 4x35 mm2 vč. ztratného prořezem","m",141,null,{"$f":"E499*D499","v":0}]
[]
[null,"Výměry položky:"]
[null,"(60+7+9+6+27+27)*1,035=141 m"]
[null,"Do výměr položky zahrnuto pro každé pole 5 m kabelu navíc (výstup 2 konců kabelu ze země do elektrovýzbroje s rezervou"]
[null,"pro zapojení do elektrovýzbroje - 2 x 1,5 m, prodloužení rozvodu vlivem zvlnění chráničky ve výkopu - 2 m, pro zapojení"]
[null,"v rozváděči 3 m navíc) a. ztratné prořezem"]
[]
[]
[{"$f":"A499+1","v":22},"kabel CYKY-J 4x16 mm2 vč. ztratného prořezem","m",357,null,{"$f":"E508*D508","v":0}]
[]
[null,"Výměry položky:"]
[null,"(40+45+58+33+31+97+41)*1,035=357 m"]
[null,"Do výměr položky zahrnuto pro každé pole 5 m kabelu navíc (výstup 2 konců kabelu ze země do elektrovýzbroje s rezervou"]
[null,"pro zapojení do elektrovýzbroje - 2 x 1,5 m, prodloužení rozvodu vlivem zvlnění chráničky ve výkopu - 2 m, pro zapojení"]
[null,"v rozváděči 3 m navíc) a. ztratné prořezem"]
[]
[]
[null,"Celkem",null,null,null,{"$f":"SUM(F296:F508)","v":0}]
[]
["III.A"," UZEMNĚNÍ - montáž"]
[null,"(výměry vycházejí z výkresů 2.2.1 a 2.2.2)"]
[]
[1,"zemnič FeZn Ć 10 mm","m",231,null,{"$f":"ROUND((D522*E522),-1)","v":0}]
[]
[null,"Výměry položky:"]
[null,"(39+44+32+30+40+26+7+5)*1,035=231 m"]
[null,"Do výměr položky zahrnuto pro každé pole 4 m zemniče navíc (výstup 2 konců zemniče ze země s rezervou pro připojení"]
[null,"do zemnící svorky - 2 x 1 m, prodloužení potřebné délky vlivem zvlnění zemniče ve výkopu - 2 m) a. ztratné prořezem"]
[]
[]
[{"$f":"A522+1","v":2},"připojení uzemnění konstrukce stožáru nebo rozváděče vč. montáže zemnící svorky,"]
[null,"přizemnění ochr. vodiče, označení zemniče samolepkou vč. dodání samolepky","ks",9,null,{"$f":"E531*D531","v":0}]
[]
[null,"Výměry položky:"]
[null,"1+1+1+1+1+1+1+1+1=9 ks"]
[null,"na stožárech č.  53p, č. 54, č. 55, č. 56, č. 57, č. 58 (Martinovská), č. 24, č. 26 (1. čs. armádního sboru), RVOO 875/1"]
[]
[]
[{"$f":"A530+1","v":3},"nátěr zemniče FeZn Ø10 mm (1 x základní, 1 x vrchní šedý RAL 7046) vč. dodání"]
[null,"barvy a potřeb. materiálu (štětce, ředidlo), dodání a osazení zž smršťovací trubice"]
[null,"na zemnič","m",14,null,{"$f":"E540*D540","v":0}]
[]
[null,"Výměry položky:"]
[null,"9*1,5=14 m -  Nátěr zemniče a osazení zž smršťovací trubice v délce 1,5 m u každého dotčeného stožáru."]
[]
[]
[{"$f":"A538+1","v":4},"pevné spojení zemniče v zemi","ks",10,null,{"$f":"E546*D546","v":0}]
[]
[null,"Výměry položky:  1+1+1+1+1+1+1+1+1+1=10 ks"]
[null,"Započítána místa spojení 2 zemničů u stožáru a dále místa napojení nového zemniče na stávající."]
[]
[]
[null,"Celkem",null,null,null,{"$f":"SUM(F519:F551)","v":0}]
[]
[]
["III.B"," UZEMNĚNÍ - materiál nosný"]
[null,"(výměry vycházejí z výkresů 2.2.1 a 2.2.2)"]
[]
[1,"zemnič FeZn Ć10 mm vč. ztratného prořezem","kg",144,null,{"$f":"ROUND((D558*E558),0)","v":0}]
[]
[null,"Výměry položky:  231*0,625=144 kg - počet m zemniče (viz položka č. 1 v oddíle"]
[null,"III.A UZEMNĚNÍ - montáž) vynásobený hmotností 1 m zemniče"]
[]
[]
[{"$f":"A558+1","v":2},"stožárová zkušební zemnící svorka pro zemnič FeZn Ø10 mm vč. upevňovacího"]
[null,"materiálu (vše v povrch. úpravě odolávající dlouhodobě povětrnostním vlivům)","ks",9,null,{"$f":"E565*D565","v":0}]
[]
[null,"Výměry položky - viz položka č. 2 v oddíle III.A UZEMNĚNÍ - montáž"]
[]
[]
[{"$f":"A564+1","v":3},"spojovací svorka pro zemnič FeZn Ø10 mm v povrch. úpravě odolávající"]
[null,"dlouhodobě povětrnostním vlivům (pozink.)","ks",20,null,{"$f":"E571*D571","v":0}]
[]
[null,"Výměry položky:  10*2 =20 ks"]
[null,"Pro každé pevné spojení zemničů předpokládáno použití 2 ks spojovacích svorek."]
[]
[]
[null,"Celkem",null,null,null,{"$f":"SUM(F555:F576)","v":0}]
[]
[]
["IV.","ZEMNÍ PRÁCE"]
[null,"(výměry vycházejí z výkresů 2.2.1, 2.2.2, 2.2.3, 2.2.4, 2.2.5, 2.2.6 a 2.2.7)"]
[]
[1,"vytýčení trasy podél silnice","km",0.23699999999999999,null,{"$f":"ROUND((D583*E583),-1)","v":0}]
[]
[null,"Výměry položky:  (150+41+42)*0,001=0,233 km"]
[null,"Součet výměr výkopů v zemi a prostupů pro VO připravených v rámci PS 901."]
[]
[]
[{"$f":"A583+1","v":2},"kompletní základ silničního osvětlovacího stožáru jmenovité výšky 10 m v zeleni"]
[null,"(provedení dle výkresu 2.2.4) vč. výkopu jámy 1,896 m3  ((0,9*0,9+075*0,75)/2*1,7+"]
[null,"0,9*0,9*0,9), urovnání dna a přemístění výkopku do 3 m od okraje jámy nebo"]
[null,"naložení na dopravní prostředek, zabezpečení výkopu proti sesuvu vč. materiálu,"]
[null,"dodání a osazení stožárového pouzdra (trubka PVC-U Ø400x9,8 mm délky 1150 mm),"]
[null,"betonování základu 0,25 m3 základu bez bednění (0,75*0,75*0,4+3,14*0,2*0,2*0,2),"]
[null,"betonování 0,118 m3 základu do bednění (3,14*0,25*0,25*0,6), zhotovení a dodání"]
[null,"bednění, dodání 0,381 m3 betonu C25/30 XF-2 ((0,25+0,118)*1,035 vč. ztratného),"]
[null,"zapískování dříku ve stožár. pouzdře vč. dodání 0,066 m3 písku ((3,14*0,2*0,2*0,6-"]
[null,"3,14*0,08*0,08*0,6)*1,035 vč. ztratného),  dodání a osazení 2 ks plast. ohebných"]
[null,"trubek Ø40 mm délky 1 m, zásyp jámy zeminou 1,462 m3 (1,896-0,25-0,118-0,066),"]
[null,"zhutnění záhozu, naložení a odvoz 0,434 m3 přebytečné zeminy a sutě vč. uložení"]
[null,"na skládku (1,896-1,462) - provedení v zeleni bez definitivní úpravy povrchu","ks",3,null,{"$f":"E601*D601","v":0}]
[]
[]
[null,"Výměry položky:"]
[null,"1+1+1= 3 ks  - základy pro stožáry č. 54, č. 57 (Martinovská) a č. 26 (1. čs. armádního sboru) "]
[]
[]
[{"$f":"A589+1","v":3},"kompletní základ zesíleného silničního osvětl. stožáru jmenovité výšky 8 m a 10 m"]
[null,"v asfaltovém chodníku (provedení dle výkresu 2.2.4) vč. výkopu jámy 1,808 m3"]
[null," ((0,9*0,9+08*0,8)/2*1,6+ 0,9*0,9*0,8),  urovnání dna a přemístění výkopku"]
[null,"do 3 m od okraje jámy nebo naložení na dopravní prostředek, zabezpečení výkopu"]
[null,"proti sesuvu vč. materiálu, dodání a osazení stožárového pouzdra (trubka PVC-U"]
[null,"Ø400x9,8 mm délky 1150 mm), betonování základu 0,281 m3 základu bez bednění"]
[null,"(0,8*0,8*0,4+3,14*0,2*0,2*0,2), betonování 0,1 m3 základu do bednění"]
[null,"(3,14*0,25*0,25*0,5), zhotovení a dodání bednění, dodání 0,381 m3 betonu"]
[null,"C25/30 XF-2 ((0,281+0,1)*1,035 vč. ztratného), zapískování dříku ve stožárovém"]
[null,"pouzdře vč. dodání 0,066 m3 písku ((3,14*0,2*0,2*0,6-3,14*0,08*0,08*0,6)*1,035"]
[null,"vč. ztratného),  dodání a osazení 2 ks plast. ohebných trubek Ø40 mm délky 1 m,"]
[null,"zásyp jámy zeminou 1,361 m3 (1,808-0,281-0,1-0,066), zhutnění záhozu, naložení"]
[null,"a odvoz 0,447 m3 přebytečné zeminy a sutě vč. uložení na skládku (1,808-1,361) -"]
[null,"provedení v chodníku nebo zpevněné ploše bez rozbití povrchu a bez provedení"]
[null,"definitivní úpravy povrchu","ks",2,null,{"$f":"E622*D622","v":0}]
[]
[null,"Výměry položky: 1+1 =2 ks  - základy pro stožáry č. 55 a č. 56 (Martinovská)"]
[]
[]
[{"$f":"A608+1","v":4},"kompletní základ silnič. osvětl. přírubového stožáru jmenovité výšky 10 m v zeleni"]
[null,"(provedení dle výkr. 2.2.5) vč. výkopu jámy 1,896 m3 ((0,9*0,9+075*0,75)/2*1,7+"]
[null,"0,9*0,9*0,9),  urovnání dna a přemístění výkopku do 3 m od okraje jámy nebo"]
[null,"naložení na dopravní prostředek, zabezpečení výkopu proti sesuvu vč. materiálu,"]
[null,"betonování 1,013 m3 základu do bednění (0,75*0,75*1,8), zhotovení a dodání"]
[null,"bednění, dodání 1,049 m3 betonu C25/30-XF2 (1,013*1,035 vč. ztratného), osazení"]
[null,"stožárového základového roštu, dodání a osazení 2 ks plastových ohebných"]
[null,"trubek Ø40 mm délky 1 m, dodání a osazení 1,7 m tuhé plastové trubky Ø20 mm,"]
[null,"dodání a osazení betonářské ocelové výztuže Ø25 mm (11,5 m) vč. přivaření"]
[null,"k základovému roštu, zásyp jámy 0,94 m3 zeminou (1,896-1,013+0,75*0,75*0,1),"]
[null,"zhutnění záhozu, naložení a odvoz 0,956 m3 (1,896-0,94) přebytečné zeminy"]
[null,"a sutě vč. uložení na skládku - provedení v zeleni bez definit. úpravy povrchu","ks",1,null,{"$f":"E638*D638","v":0}]
[]
[null,"Výměry položky: 1 ks  - základ pro stožár č. 53p (Martinovská)"]
[]
[]
[]
[{"$f":"A627+1","v":5},"kabelová rýha 35/50 cm v zeleni  (provedení dle výkresu 2.2.6) s drážkou"]
[null,"pro uložení zemniče v hloubce min. 50 cm - provedení 1 m položky zahrnuje:"]
[null,"výkop zeminy (rýhy) 0,178 m3 (0,35*0,5*1+0,05*0,05*1) vč. urovnání dna"]
[null,"a přemístění výkopku do 3 m od okraje rýhy nebo naložení na dopravní prostředek,"]
[null,"dodání a uložení červené výstražné fólie š=33 cm v délce 1,1 m, přesátí zeminy"]
[null,"(zbavení větších kamenů a hrubých nečistot) v objemu 0,07 m3 (0,2*0,35*1), zához"]
[null,"výkopu 0,178 m3 a zhutnění záhozu, naložení a odvoz přebytečné zeminy a sutě"]
[null,"(do 10% objemu výkopu) vč. uložení na skládku, bez definit. úpravy povrchu","m",146,null,{"$f":"E651*D651","v":0}]
[]
[null,"Výměry položky: 35+27+9+2+8+1+16+19+4+14+11=146 m"]
[]
[]
[{"$f":"A644+1","v":6},"kabelová rýha 35/50 cm v chodníku nebo zpevněné ploše (provedení dle"]
[null,"výkresu 2.2.6) s drážkou pro uložení zemniče v hloubce min. 50 cm - provedení 1 m"]
[null,"položky obsahuje: výkop zeminy (rýhy) 0,16 m3 (0,35*0,45*1+0,05*0,05*1) vč."]
[null,"urovnání dna a přemístění výkopku do 3 m od okraje rýhy nebo naložení na"]
[null,"dopravní prostředek, dodání a uložení červené výstražné fólie š=33 cm v délce"]
[null,"1,1 m, zához zemniče zeminou 0,003 m3 (0,05*0,05*1), zához výkopu pískem 0,07 m3"]
[null,"(0,35*0,2*1) a tříděnou struskou 0,09 m3 (0,35*0,25*1), zhutnění záhozu, dodání"]
[null,"0,072 m3 písku (0,07*1,035 vč. ztratného) a 0,093 m3 tříděné strusky frakce 0-8 mm"]
[null,"(0,09*1,035 vč. ztratného), naložení a odvoz přebytečné zeminy a sutě 0,158 m3"]
[null,"(0,35*0,45*1) včetně uložení na skládku - provedení v chodníku nebo zpevněné"]
[null,"ploše bez rozbíjení stávajícího povrchu a bez definitivních úprav povrchu","m",41,null,{"$f":"E666*D666","v":0}]
[]
[null,"Výměry položky: 4+12+3+11+4+7=41 m"]
[]
[]
[{"$f":"A656+1","v":7},"kabelová rýha 35/50 cm v zeleni  (provedení dle výkresu 2.2.6) s drážkou pro"]
[null,"uložení zemniče v hloubce min. 50 cm - provedení 1 m položky zahrnuje: výkop"]
[null,"zeminy (rýhy) 0,178 m3 (0,35*0,5*1+0,05*0,05*1) vč. urovnání dna a přemístění"]
[null,"výkopku do 3 m od okraje rýhy nebo naložení na dopravní prostředek, dodání"]
[null,"a uložení červené výstražné fólie š=33 cm v délce 1,1 m, přesátí zeminy (zbavení"]
[null,"větších kamenů a hrubých nečistot) v objemu 0,07 m3 (0,2*0,35*1), zához výkopu"]
[null,"0,178 m3 a zhutnění záhozu, naložení a odvoz přebytečné zeminy a sutě (do 10%"]
[null,"objemu výkopu) vč. uložení na skládku, provedení definit. úpravy povrchu 1,35 m2"]
[null,"((0,35+2*0,5)*1) vč. dodání 0,04 kg travního semene (1 kg/40 m2 vč. ztratného)","m",4,null,{"$f":"E679*D679","v":0}]
[]
[null,"Výměry položky: 1+3 =4 m"]
[]
[]
[{"$f":"A671+1","v":8},"kabelová rýha 35/50 cm v chodníku nebo zpevněné ploše (provedení dle výkresu"]
[null,"2.2.6) s drážkou pro uložení zemniče v hloubce min. 50 cm - provedení 1 m položky"]
[null,"obsahuje: rozbití 0,5 m2 (0,5*1) asfalt. povrchu tloušťky 5 cm vč. řezání spár"]
[null,"v délce 2 m (2*1) a naložení, rozbití beton. podkladu chodníku 0,035 m3 (0,35*0,1*1)"]
[null,"vč. naložení, výkop zeminy (rýhy) 0,125 m3 (0,35*0,35*1+0,05*0,05*1) vč. urovnání"]
[null,"dna a přemístění výkopku do 3 m od okraje rýhy nebo naložení na dopravní"]
[null,"prostředek, dodání a uložení červené výstr. fólie š=33 cm v délce 1,1 m, zához"]
[null,"zemniče zeminou 0,003 m3 (0,05*0,05*1), zához výkopu pískem 0,07 m3 (0,35*0,2*1)"]
[null,"a tříděnou struskou 0,053 m3 (0,35*0,15*1), zhutnění záhozu, dodání 0,072 m3 písku"]
[null,"(0,07*1,035 vč. ztratného) a 0,055 m3 tříděné strusky frakce 0-8 mm (0,053*1,035"]
[null,"vč. ztratného), zhotovení beton. podkladové vrstvy chodníku v tloušťce 0,1 m,"]
[null,"dodání betonu 0,036 m3 C16/20 (0,35*0,1*1)*1,035, naložení a odvoz přebytečné"]
[null,"zeminy a sutě 0,183 m3 (0,5*0,05+0,035+0,125-0,05*0,05*1) vč. uložení na skládku,"]
[null,"provedení definit. úpravy asfaltového povrchu tloušťky 5 cm na ploše 0,5 m2"]
[null,"(0,5*1) vč. dodání živičné směsi ABJ, aplikace spojovacího postřiku na 0,5 m2"]
[null,"plochy vč. dodání 0,15 kg spojovacího postřiku (0,3 kg/m2), zalití pracovních spár"]
[null,"v délce 2 m (2*1) modifikovanou zálivkou vč. dodání modifikované zálivky","m",4,null,{"$f":"E700*D700","v":0}]
[]
[null,"Výměry položky: 4 m"]
[]
[{"$f":"A684+1","v":9},"dodání červené ohebné korugované chráničky HDPE/LDPE Æ 75 mm (vč. potřeb."]
[null,"spojek) vč. uložení této chráničky do výkopu - uvedená výměra zahrnuje"]
[null,"ztratné prořezem","m",470,null,{"$f":"D706*E706","v":0}]
[]
[null,"Výměry položky:  ((141+357)-16-4*3)=470 m"]
[null,"Délka kabelů CYKY-J 4x16 a 1-AYKY-J 4x35 zkrácená o rezervu kabelů pro zapojení do elektrovýzbrojí a do rozváděče"]
[]
[]
[{"$f":"A704+1","v":10},"prohloubení a rozšíření výkopu 35/50 cm na 50/80 cm v místě uložení kabelové"]
[null,"spojky, položka obsahuje: výkop zeminy 0,225 m3 (0,5*0,8*1-0,35*0,5*1), zához"]
[null,"zeminou 0,225 m3, zhutnění záhozu","ks",5,null,{"$f":"E714*D714","v":0}]
[]
[null,"Výměry položky: 1+1+1+1+1 =5 ks"]
[]
[]
[{"$f":"A712+1","v":11},"utěsnění konce prostupu Ø160 mm montážní pěnou vč. dodání PU pěny","ks",4,null,{"$f":"D719*E719","v":0}]
[]
[null,"Výměry položky: 2*2 =4 ks"]
[]
[]
[{"$f":"A719+1","v":12},"příplatek na provedení křížení s jiným vedením vč. projednání se správcem, uložení"]
[null,"cizího vedení do chráničky (vč. dodání dělené chráničky délky 2,5 m do Ø160 mm),"]
[null,"odkopání vedení v místě křížení 0,438 m3 (0,35*0,5*2,5), obsypání cizího vedení"]
[null,"pískem vč. dodání 0,1 m3 (0,2*0,2*2,5) písku, zához 0,338 m3 a zhutnění záhozu,","ks",10,null,{"$f":"E727*D727","v":0}]
[]
[{"$f":"A724+1","v":13},"pálená cihla plná pro mechanickou ochranu kabelových spojek v zemi","ks",20,null,{"$f":"E729*D729","v":0}]
[]
[null,"Výměry položky: 5*4=20 ks  -  4ks cihel na každou spojku"]
[]
[]
[null,"Celkem",null,null,null,{"$f":"SUM(F580:F733)","v":0}]
[]
[]
["V.","HODINOVÁ ZÚČTOVACÍ SAZBA A JINÉ POPLATKY"]
[null,"(výměry vycházejí z výkresové a z textové části PD SO 401)"]
[]
[1,"přepojení rozvodu VO, provizorní provoz, rozfázování, provedení měření a sond","hod.",8,null,{"$f":"E740*D740","v":0}]
[{"$f":"A740+1","v":2},"jednání se správci sítí, koordinace se zhotoviteli jiných stavebních objektů","hod.",8,null,{"$f":"E741*D741","v":0}]
[{"$f":"A741+1","v":3},"výchozí revize, provedení měření, vypracování kompletní zprávy","hod.",16,null,{"$f":"E742*D742","v":0}]
[{"$f":"A742+1","v":4},"světelnětechnické měření nainstalované soustavy VO","ks",1,null,{"$f":"E743*D743","v":0}]
[]
[null,"Světelně technické měření křižovatky (cca 25 m x 33 m)"]
[]
[{"$f":"A743+1","v":5},"digitální fotodokumentace SO 401 pro účely pasportizace VO (3 x CD)","ks",1,null,{"$f":"E747*D747","v":0}]
[]
[null,"6 ks světelných míst"]
[]
[{"$f":"A747+1","v":6},"geodetické zaměření SO 401 na podkladu katastrální mapy (CD se soubory"]
[null,"ve formátu dgn, dxf nebo dwg a tisk) ve trojím vyhotovení","ks",1,null,{"$f":"E752*D752","v":0}]
[]
[null,"Geodetické zaměření 0,237 km trasy VO vč. stožárů"]
[]
[{"$f":"A751+1","v":7},"vytýčení trasy VO a stožárů před zahájením stavby","ks",1,null,{"$f":"E756*D756","v":0}]
[]
[null,"Vytýčení 0,237 km trasy VO vč. 6 ks stožárů"]
[]
[{"$f":"A756+1","v":8},"geodetické zaměření nového zařízení VO v ochranném pásmu zařízení OVaK, a.s."]
[null,"(předat prostřednictvím OK, a.s.) - 1x tisk v KM a 1x CD","ks",1,null,{"$f":"E761*D761","v":0}]
[]
[]
[{"$f":"A760+1","v":9},"označení stožáru kontrastním pruhem dle vyhl. 398/2009Sb. vč. materiálu","ks",2,null,{"$f":"E764*D764","v":0}]
[]
[null,"Týká se stožárů č. 55 a č. 56 (Martinovská) umístěných ve zpevněných plochách (chodnících)"]
[]
[{"$f":"A764+1","v":10},"provizorní dopravní značení pro SO 401, zajištění výkopů a lávek po dobu"," "," "]
[null,"provádění výkopů","ks",1,null,{"$f":"D769*E769","v":0}]
[]
[null,"Celkem",null,null,null,{"$f":"SUM(F737:F770)","v":0}]